fUST/lending_fUST_20240228
["ID","MTS","AMOUNT","RATE_DAILY","PERIOD"]
[315525190,1709122241236,-262.09644911,0.00020167,2]
[315525192,1709122241246,-3584.25904082,0.00020199,2]
[315525194,1709122241255,-6863.67,0.00020237,2]
[315525196,1709122241264,-1326.99,0.00020239,2]
[315525198,1709122241274,-8446.6,0.00020239,2]
[315525200,1709122241284,-500.0,0.00020239,2]
[315525202,1709122241293,-530.43,0.00020239,2]
[315525204,1709122241302,-738.23,0.0002024,2]
[315525206,1709122241312,-1266.85,0.0002024,2]
[315525208,1709122241321,-500.0,0.00020248,2]
[315525210,1709122241331,-399.884704,0.00020248,2]
[315525212,1709122241342,-399.884704,0.00020248,2]
[315525214,1709122241353,-594.24,0.00020248,2]
[315525216,1709122241362,-500.0,0.00020248,2]
[315525218,1709122241373,-531.37,0.00020248,2]
[315525220,1709122241382,-817.94,0.00020248,2]
[315525222,1709122241391,-500.0,0.00020248,2]
[315525224,1709122241401,-1391.62,0.00020248,2]
[315525226,1709122241410,-652.09,0.00020248,2]
[315525228,1709122241420,-500.0,0.00020248,2]
[315525230,1709122241430,-500.0,0.00020248,2]
[315525232,1709122241439,-237.42903184,0.00020248,2]
[315525234,1709122241448,-1967.34,0.00020248,2]
[315525236,1709122241458,-538.27,0.00020248,2]
[315525238,1709122241467,-664.29,0.00020248,2]
[315525240,1709122241476,-1120.51,0.0002026,2]
[315525242,1709122241485,-3623.2,0.0002026,2]
[315525244,1709122241494,-1302.68,0.0002026,2]
[315525246,1709122241503,-960.26,0.00020261,2]
[315525248,1709122241512,-500.17,0.00020261,2]
[315525250,1709122241521,-843.94,0.00020261,2]
[315525252,1709122241531,-500.0,0.00020261,2]
[315525254,1709122241540,-50000.0,0.00020264,5]
[315525256,1709122241550,-399.884704,0.00020264,2]
[315525258,1709122241559,-399.884704,0.00020264,2]
[315525260,1709122241569,-300.09983885,0.00020272,2]
[315525262,1709122241578,-3584.25904078,0.00020277,2]
[315525264,1709122241587,-1000.0,0.0002028,5]
[315525266,1709122241600,-1000.0,0.0002028,5]
[315525268,1709122241609,-1000.0,0.0002028,5]
[315525270,1709122241619,-1000.0,0.0002028,5]
[315525272,1709122241628,-1000.0,0.0002028,5]
[315525274,1709122241638,-1000.0,0.0002028,5]
[315525276,1709122241647,-4159.32376784,0.0002028,5]
[315525280,1709122241681,-840.67623216,0.0002028,5]
[315525282,1709122241692,-5000.0,0.0002028,5]
[315525284,1709122241703,-5000.0,0.0002028,5]
[315525286,1709122241713,-1000.0,0.0002028,5]
[315525288,1709122241722,-5000.0,0.0002028,5]
[315525290,1709122241732,-5000.0,0.0002028,5]
[315525292,1709122241743,-1066.48620471,0.00020294,2]
[315525294,1709122241752,-500.0,0.00020294,2]
[315525296,1709122241761,-500.0,0.00020294,2]
[315525298,1709122241773,-500.0,0.00020294,2]
[315525300,1709122241782,-500.0,0.00020294,2]
[315525302,1709122241792,-500.0,0.00020294,2]
[315525304,1709122241801,-1066.48620471,0.00020294,2]
[315525306,1709122241811,-500.0,0.00020294,2]
[315525308,1709122241820,-500.0,0.00020294,2]
[315525310,1709122241829,-500.0,0.00020294,2]
[315525312,1709122241838,-1066.48620471,0.00020294,2]
[315525314,1709122241850,-500.0,0.00020294,2]
[315525316,1709122241859,-424.09990817,0.00020294,2]
[315525318,1709122241869,-500.0,0.00020294,2]
[315525320,1709122241878,-1066.48620471,0.00020294,2]
[315525322,1709122241887,-500.0,0.00020294,2]
[315525324,1709122241897,-500.0,0.00020294,2]
[315525326,1709122241906,-500.0,0.00020294,2]
[315525328,1709122241916,-1066.48620471,0.00020294,2]
[315525330,1709122241925,-500.0,0.00020294,2]
[315525332,1709122241935,-350.62737614,0.00020294,2]
[315525335,1709122241947,-149.37262386,0.00020294,2]
[315525337,1709122241956,-480.08737614,0.00020294,2]
[315525483,1709122243456,-683.93,0.00019416,2]
[315525485,1709122243466,-683.93,0.0001969,2]
[315525487,1709122243474,-20467.78945424,0.00019702,3]
[315525490,1709122243495,-1721.63054576,0.00019702,3]
[315525492,1709122243504,-683.93,0.00019964,2]
[315525494,1709122243514,-683.93,0.00020238,2]
[315525496,1709122243523,-19.91262386,0.00020294,2]
[315525498,1709122243532,-399.884704,0.00020296,2]
[315525500,1709122243541,-399.884704,0.00020296,2]
[315525502,1709122243550,-399.884704,0.00020296,2]
[315525504,1709122243559,-399.884704,0.00020296,2]
[315525506,1709122243568,-399.884704,0.00020296,2]
[315525508,1709122243577,-399.884714,0.00020296,2]
[315525511,1709122243587,-5000.0,0.00020299,5]
[315525513,1709122243600,-5000.0,0.00020299,5]
[315525515,1709122243611,-5000.0,0.00020299,5]
[315525517,1709122243620,-5000.0,0.00020299,5]
[315525519,1709122243631,-5000.0,0.00020299,5]
[315525521,1709122243641,-1000.0,0.00020299,5]
[315525523,1709122243651,-5000.0,0.00020299,5]
[315525524,1709122243660,-1000.0,0.00020299,5]
[315525526,1709122243670,-1000.0,0.00020299,5]
[315525528,1709122243680,-1000.0,0.00020299,5]
[315525530,1709122243690,-1000.0,0.00020299,5]
[315525533,1709122243703,-1000.0,0.00020299,5]
[315525535,1709122243712,-1000.0,0.00020299,5]
[315525536,1709122243722,-5000.0,0.00020299,5]
[315525538,1709122243731,-1000.0,0.00020299,5]
[315525541,1709122243742,-5000.0,0.00020299,5]
[315525542,1709122243751,-5000.0,0.00020299,5]
[315525544,1709122243760,-5000.0,0.00020299,5]
[315525546,1709122243769,-5000.0,0.00020299,5]
[315525548,1709122243779,-5000.0,0.00020299,5]
[315525550,1709122243788,-5000.0,0.00020299,5]
[315525554,1709122243799,-1000.0,0.00020299,5]
[315525557,1709122243807,-5000.0,0.00020299,5]
[315525559,1709122243816,-1000.0,0.00020299,5]
[315525561,1709122243825,-5000.0,0.00020299,5]
[315525563,1709122243834,-1000.0,0.00020299,5]
[315525565,1709122243847,-1000.0,0.00020299,5]
[315525567,1709122243857,-1000.0,0.00020299,5]
[315525569,1709122243866,-1865.88859566,0.00020299,5]
[315525589,1709122244041,-737.79331864,0.0002028,5]
[315525591,1709122244052,-411.03971674,0.0002028,5]
[315525593,1709122244062,-722.15458946,0.0002028,5]
[315525596,1709122244078,-634.81462701,0.0002028,5]
[315525599,1709122244090,-2494.19774815,0.0002028,5]
[315525600,1709122244101,-3080.80225185,0.00020299,5]
[315525603,1709122244113,-53.30915249,0.00020299,5]
[315525605,1709122244123,-1000.0,0.00020299,5]
[315525607,1709122244132,-5000.0,0.00020299,5]
[315525609,1709122244142,-5000.0,0.00020299,5]
[315525611,1709122244151,-286.1510656,0.000203,2]
[315525613,1709122244161,-1000.0,0.00020301,5]
[315525615,1709122244170,-5000.0,0.00020301,5]
[315525617,1709122244179,-1098.64299052,0.00020301,5]
[315525619,1709122244191,-3901.35700948,0.00020301,5]
[315525621,1709122244200,-5000.0,0.00020301,5]
[315525623,1709122244209,-5000.0,0.00020301,5]
[315525625,1709122244218,-5000.0,0.00020301,5]
[315525627,1709122244227,-5000.0,0.00020301,5]
[315525629,1709122244236,-5000.0,0.00020301,5]
[315525631,1709122244246,-5000.0,0.00020301,5]
[315525633,1709122244255,-1000.0,0.00020301,5]
[315525635,1709122244264,-5000.0,0.00020301,5]
[315525637,1709122244273,-1000.0,0.00020301,5]
[315525639,1709122244282,-4560.86514999,0.00020301,5]
[315525641,1709122244293,-439.13485001,0.00020301,5]
[315525643,1709122244302,-5000.0,0.00020301,5]
[315525645,1709122244311,-5000.0,0.00020301,5]
[315525647,1709122244321,-5000.0,0.00020301,5]
[315525649,1709122244330,-5000.0,0.00020301,5]
[315525651,1709122244339,-1000.0,0.00020301,5]
[315525653,1709122244349,-5000.0,0.00020301,5]
[315525655,1709122244358,-5000.0,0.00020301,5]
[315525657,1709122244367,-5000.0,0.00020301,5]
[315525659,1709122244376,-5000.0,0.00020301,5]
[315525661,1709122244385,-5000.0,0.00020301,5]
[315525663,1709122244394,-5000.0,0.00020301,5]
[315525665,1709122244402,-5000.0,0.00020301,5]
[315525667,1709122244411,-1000.0,0.00020301,5]
[315525669,1709122244420,-1000.0,0.00020301,5]
[315525671,1709122244429,-1000.0,0.00020301,5]
[315525674,1709122244439,-1000.0,0.00020301,5]
[315525675,1709122244448,-1000.0,0.00020301,5]
[315525677,1709122244457,-5000.0,0.00020301,5]
[315525679,1709122244466,-5000.0,0.00020301,5]
[315525681,1709122244475,-1000.0,0.00020301,5]
[315525683,1709122244484,-5000.0,0.00020301,5]
[315525685,1709122244493,-5000.0,0.00020301,5]
[315525687,1709122244502,-1000.0,0.00020301,5]
[315525689,1709122244510,-1000.0,0.00020301,5]
[315525691,1709122244519,-1000.0,0.00020301,5]
[315525693,1709122244528,-5000.0,0.00020301,5]
[315525695,1709122244540,-5000.0,0.00020301,5]
[315525708,1709122244644,-5000.0,0.00020308,5]
[315525710,1709122244654,-1000.0,0.00020308,5]
[315525712,1709122244663,-1000.0,0.00020308,5]
[315525714,1709122244672,-1000.0,0.00020308,5]
[315525716,1709122244681,-1000.0,0.00020308,5]
[315525718,1709122244691,-1000.0,0.00020308,5]
[315525720,1709122244700,-5000.0,0.00020308,5]
[315525722,1709122244710,-1000.0,0.00020308,5]
[315525724,1709122244723,-5000.0,0.00020308,5]
[315525726,1709122244732,-1000.0,0.00020308,5]
[315525728,1709122244742,-1000.0,0.00020308,5]
[315525730,1709122244753,-1000.0,0.00020308,5]
[315525732,1709122244762,-1000.0,0.00020308,5]
[315525734,1709122244772,-1000.0,0.00020308,5]
[315525736,1709122244781,-1000.0,0.00020308,5]
[315525738,1709122244791,-511.21293971,0.00020318,2]
[315525740,1709122244801,-179.42519184,0.00020318,2]
[315525742,1709122244811,-214.08462092,0.00020318,2]
[315525744,1709122244820,-389.73086033,0.00020319,2]
[315525746,1709122244829,-1492.89570951,0.00020319,2]
[315525748,1709122244838,-1212.81251525,0.00020328,2]
[315525750,1709122244849,-3584.25904078,0.00020355,2]
[315525752,1709122244858,-500.0,0.00020356,2]
[315525754,1709122244867,-186.83075928,0.00020375,2]
[315525756,1709122244876,-6218.95963563,0.00020375,2]
[315525758,1709122244886,-50000.0,0.00020376,3]
[315525760,1709122244895,-50000.0,0.00020376,3]
[315525762,1709122244904,-484.02419246,0.00020379,2]
[315525764,1709122244914,-50000.0,0.00020382,2]
[315525766,1709122244923,-152.0,0.00020382,2]
[315525768,1709122244932,-26641.14717575,0.00020392,3]
[315525958,1709122246702,-500.0,0.00019426,2]
[315525960,1709122246712,-821.0,0.00020392,3]
[315525983,1709122246938,-3513.45251144,0.00020392,3]
[315525986,1709122246950,-2070.00001,0.00020392,3]
[315525988,1709122246962,-3200.32,0.00020392,3]
[315537203,1709122476405,151.05891298,0.00021339,30]
[315537204,1709122476495,151.05891298,0.00020912,120]
[315537205,1709122728189,151.11182275,0.00021535,30]
[315537206,1709122728297,151.11182275,0.00021105,120]
[315537210,1709123061238,2000.0,0.00021,21]
[315537212,1709123249071,151.09670189,0.00020941,30]
[315537213,1709123249139,151.09670189,0.00020522,120]
[315537325,1709123440135,-677.72614666,0.00018999,2]
[315537326,1709123440144,-969.85090345,0.00019,2]
[315537327,1709123440153,-165.821467,0.00019178,2]
[315537328,1709123440162,-166.666666,0.00019178,2]
[315537329,1709123440174,-18491.18,0.00019405,3]
[315537331,1709123440184,-500.0,0.00019412,2]
[315537332,1709123440193,-6968.25,0.00019413,2]
[315537334,1709123440203,-500.0,0.00019413,2]
[315537336,1709123440213,-652.72,0.00019413,2]
[315537338,1709123440223,-500.0,0.00019413,2]
[315537340,1709123440232,-1271.05,0.00019413,2]
[315537342,1709123440242,-500.0,0.00019413,2]
[315537344,1709123440251,-8147.28,0.00019413,2]
[315537345,1709123440261,-500.0,0.00019413,2]
[315537347,1709123440272,-509.4579801,0.00019414,2]
[315537349,1709123440282,-500.0,0.00019414,2]
[315537351,1709123440291,-507.96588146,0.00019414,2]
[315537353,1709123440300,-500.0,0.00019414,2]
[315537355,1709123440309,-500.0,0.00019414,2]
[315537357,1709123440319,-500.0,0.00019414,2]
[315537359,1709123440328,-500.0,0.00019414,2]
[315537361,1709123440337,-607.64,0.00019414,2]
[315537364,1709123440351,-500.0,0.00019414,2]
[315537366,1709123440363,-501.29954357,0.00019414,2]
[315537368,1709123440375,-500.0,0.00019414,2]
[315537371,1709123440387,-533.87,0.00019414,2]
[315537373,1709123440399,-500.0,0.00019414,2]
[315537375,1709123440411,-500.0,0.00019414,2]
[315537377,1709123440422,-500.0,0.00019414,2]
[315537380,1709123440432,-500.0,0.00019414,2]
[315537382,1709123440442,-523.65,0.00019414,2]
[315537384,1709123440453,-500.0,0.00019414,2]
[315537386,1709123440464,-500.0,0.00019414,2]
[315537388,1709123440475,-505.95058571,0.00019414,2]
[315537390,1709123440486,-500.0,0.00019414,2]
[315537393,1709123440498,-614.81,0.00019414,2]
[315537395,1709123440509,-500.0,0.00019414,2]
[315537397,1709123440523,-500.0,0.00019414,2]
[315537399,1709123440534,-500.0,0.00019414,2]
[315537402,1709123440545,-829.71,0.00019414,2]
[315537404,1709123440556,-506.16712789,0.00019414,2]
[315537406,1709123440567,-500.0,0.00019414,2]
[315537408,1709123440578,-380.88443286,0.00019414,2]
[315537410,1709123440588,-549.1,0.00019414,2]
[315537412,1709123440597,-500.0,0.00019414,2]
[315537414,1709123440608,-500.0,0.00019414,2]
[315537417,1709123440619,-561.72794676,0.00019414,2]
[315537419,1709123440630,-500.0,0.00019414,2]
[315537421,1709123440641,-500.0,0.00019414,2]
[315537423,1709123440653,-3535.94,0.00019414,2]
[315537425,1709123440664,-500.0,0.00019414,2]
[315537428,1709123440675,-500.0,0.00019414,2]
[315537430,1709123440686,-1248.34,0.00019414,2]
[315537432,1709123440697,-500.0,0.00019414,2]
[315537434,1709123440708,-500.0,0.00019414,2]
[315537436,1709123440720,-500.93460382,0.00019414,2]
[315537439,1709123440731,-500.0,0.00019414,2]
[315537441,1709123440741,-500.0,0.00019414,2]
[315537443,1709123440752,-500.0,0.00019414,2]
[315537445,1709123440762,-500.0,0.00019414,2]
[315537447,1709123440772,-510.33815903,0.00019414,2]
[315537449,1709123440785,-500.0,0.00019414,2]
[315537452,1709123440796,-500.0,0.00019414,2]
[315537455,1709123440808,-500.0,0.00019414,2]
[315537458,1709123440818,-500.0,0.00019414,2]
[315537460,1709123440828,-1316.33,0.00019414,2]
[315537462,1709123440839,-503.09950777,0.00019414,2]
[315537464,1709123440851,-842.97,0.00019414,2]
[315537466,1709123440861,-1950.92,0.00019414,2]
[315537468,1709123440872,-500.0,0.00019414,2]
[315537470,1709123440882,-607.5,0.00019414,2]
[315537472,1709123440892,-500.0,0.00019414,2]
[315537474,1709123440903,-500.0,0.00019414,2]
[315537477,1709123440914,-500.0,0.00019414,2]
[315537479,1709123440925,-1111.09,0.00019414,2]
[315537481,1709123440936,-500.0,0.00019414,2]
[315537483,1709123440946,-500.0,0.00019414,2]
[315537485,1709123440958,-212.48766108,0.00019414,2]
[315537488,1709123440969,-500.0,0.00019414,2]
[315537490,1709123440981,-1080.25,0.00019414,2]
[315537492,1709123440992,-477.41417459,0.00019415,2]
[315537494,1709123441005,-500.0,0.00019415,2]
[315537497,1709123441016,-500.0,0.00019415,2]
[315537499,1709123441028,-500.0,0.00019415,2]
[315537501,1709123441038,-500.0,0.00019415,2]
[315537503,1709123441048,-378.9263986,0.00019415,2]
[315537505,1709123441058,-500.0,0.00019415,2]
[315537507,1709123441068,-500.0,0.00019415,2]
[315537509,1709123441078,-500.0,0.00019415,2]
[315537512,1709123441090,-500.0,0.00019415,2]
[315537514,1709123441101,-151.0,0.00019415,2]
[315537516,1709123441111,-500.0,0.00019415,2]
[315537518,1709123441123,-175.17333549,0.00019415,2]
[315537520,1709123441134,-500.0,0.00019415,2]
[315537522,1709123441144,-500.0,0.00019415,2]
[315537524,1709123441154,-500.0,0.00019415,2]
[315537526,1709123441165,-566.16513416,0.00019415,2]
[315537529,1709123441177,-500.0,0.00019415,2]
[315537531,1709123441188,-500.0,0.00019415,2]
[315537533,1709123441198,-500.0,0.00019415,2]
[315537535,1709123441207,-500.0,0.00019415,2]
[315537537,1709123441217,-500.0,0.00019415,2]
[315537539,1709123441227,-500.0,0.00019415,2]
[315537541,1709123441237,-500.0,0.00019415,2]
[315537543,1709123441247,-500.0,0.00019415,2]
[315537545,1709123441256,-500.0,0.00019415,2]
[315537547,1709123441267,-220.39796233,0.00019415,2]
[315537549,1709123441279,-500.0,0.00019415,2]
[315537552,1709123441289,-500.0,0.00019415,2]
[315537554,1709123441299,-500.0,0.00019415,2]
[315537556,1709123441309,-500.0,0.00019415,2]
[315537558,1709123441319,-500.0,0.00019415,2]
[315537560,1709123441330,-500.0,0.00019415,2]
[315537562,1709123441340,-500.0,0.00019415,2]
[315537564,1709123441351,-500.0,0.00019415,2]
[315537566,1709123441361,-150.34448428,0.00019415,2]
[315537569,1709123441372,-500.0,0.00019415,2]
[315537571,1709123441382,-500.0,0.00019415,2]
[315537573,1709123441392,-576.1236502,0.00019415,2]
[315537575,1709123441402,-502.22509866,0.00019416,2]
[315537577,1709123441411,-500.0,0.00019416,2]
[315537579,1709123441422,-500.0,0.00019416,2]
[315537581,1709123441432,-500.88307051,0.00019416,2]
[315537583,1709123441442,-500.0,0.00019416,2]
[315537585,1709123441452,-898.84,0.00019416,2]
[315537587,1709123441463,-500.0,0.00019416,2]
[315537589,1709123441473,-815.35,0.00019416,2]
[315537591,1709123441485,-500.0,0.00019416,2]
[315537593,1709123441496,-500.0,0.00019416,2]
[315537595,1709123441508,-500.0,0.00019416,2]
[315537598,1709123441520,-500.0,0.00019416,2]
[315537600,1709123441534,-500.0,0.00019425,2]
[315537602,1709123441546,-500.0,0.00019426,2]
[315537604,1709123441558,-500.0,0.00019426,2]
[315537606,1709123441570,-500.0,0.00019426,2]
[315537607,1709123441581,-500.0,0.00019426,2]
[315537608,1709123441592,-500.0,0.00019426,2]
[315537609,1709123441603,-195.15697486,0.00019426,2]
[315537610,1709123441613,-500.0,0.00019426,2]
[315537611,1709123441624,-500.0,0.00019426,2]
[315537612,1709123441634,-502.30122655,0.00019426,2]
[315537613,1709123441645,-500.0,0.00019426,2]
[315537614,1709123441655,-500.0,0.00019426,2]
[315537615,1709123441666,-500.0,0.00019426,2]
[315537616,1709123441676,-500.0,0.00019426,2]
[315537617,1709123441686,-501.15891144,0.00019426,2]
[315537618,1709123441696,-500.0,0.00019426,2]
[315537619,1709123441706,-500.0,0.00019426,2]
[315537620,1709123441716,-500.0,0.00019426,2]
[315537621,1709123441727,-331.79584945,0.00019426,2]
[315537622,1709123441873,-500.0,0.00019426,2]
[315537623,1709123441884,-500.0,0.00019426,2]
[315537624,1709123441893,-500.0,0.00019426,2]
[315537625,1709123441903,-500.0,0.00019449,2]
[315537626,1709123441912,-166.666666,0.00019627,2]
[315537627,1709123441921,-539.83837602,0.00019686,2]
[315537628,1709123441930,-6968.25,0.00019687,2]
[315537630,1709123441939,-652.72,0.00019687,2]
[315537631,1709123441948,-500.0,0.00019687,2]
[315537633,1709123441958,-1271.05,0.00019687,2]
[315537635,1709123441968,-5532.42073918,0.00019687,2]
[315537638,1709123441982,-2614.85926082,0.00019687,2]
[315537640,1709123441992,-198.03830105,0.00019687,2]
[315537642,1709123442001,-434.80036403,0.00019688,2]
[315537644,1709123442010,-500.0,0.00019688,2]
[315537646,1709123442020,-607.64,0.00019688,2]
[315537648,1709123442031,-533.87,0.00019688,2]
[315537650,1709123442041,-500.0,0.00019688,2]
[315537652,1709123442050,-500.0,0.00019688,2]
[315537654,1709123442059,-523.65,0.00019688,2]
[315537656,1709123442069,-500.0,0.00019688,2]
[315537658,1709123442084,-614.81,0.00019688,2]
[315537660,1709123442093,-829.71,0.00019688,2]
[315537662,1709123442102,-500.0,0.00019688,2]
[315537664,1709123442112,-549.1,0.00019688,2]
[315537666,1709123442122,-500.0,0.00019688,2]
[315537668,1709123442131,-73.7220741,0.00019688,2]
[315537682,1709123442257,-426.2779259,0.00019688,2]
[315537684,1709123442266,-605.82,0.00019688,2]
[315537686,1709123442278,-1759.95519646,0.00019688,2]
[315537689,1709123442294,-619.59764545,0.00019688,2]
[315537691,1709123442305,-968.86324225,0.00019688,2]
[315537693,1709123442316,-187.52391584,0.00019688,2]
[315537695,1709123442326,-1248.34,0.00019688,2]
[315537697,1709123442335,-500.0,0.00019688,2]
[315537699,1709123442344,-1316.33,0.00019688,2]
[315537701,1709123442353,-583.21655999,0.00019688,2]
[315537709,1709123442427,-259.75344001,0.00019688,2]
[315537711,1709123442437,-240.24655999,0.00019688,2]
[315537858,1709123443833,-395.29617077,0.00019688,2]
[315540799,1709123474258,10000.0,0.00018,2]
[315541444,1709123481487,10000.0,0.00018,2]
[315542008,1709123487465,151.09518997,0.00021228,30]
[315542018,1709123487558,151.09518997,0.00020803,120]
[315547766,1709123698347,-500.0,0.00027822,120]
[315547768,1709123698369,-1016.68121298,0.00027822,120]
[315547769,1709123698391,-6437.432741,0.00027822,60]
[315547770,1709123698413,-1057.67658504,0.00027822,120]
[315551416,1709124031745,151.09065439,0.00021337,30]
[315551417,1709124031844,151.09065439,0.00020911,120]
[315551701,1709124502581,151.09065439,0.0002153,30]
[315551702,1709124502674,151.09065439,0.000211,120]
[315551906,1709124640108,-310.07787933,0.00019159,2]
[315551909,1709124640132,-273.96469531,0.0001916,2]
[315551911,1709124640154,-162.238783,0.00019178,2]
[315551913,1709124640177,-43.55434236,0.00019178,2]
[315551915,1709124640204,-123.11232364,0.00019178,2]
[315551917,1709124640225,-433.73729145,0.00019411,2]
[315551919,1709124640244,-3142.41109516,0.00019411,2]
[315551921,1709124640254,-151.0,0.00019412,2]
[315551923,1709124640263,-286.56469226,0.00019412,2]
[315551925,1709124640272,-500.0,0.00019412,2]
[315551927,1709124640281,-150.19,0.00019412,2]
[315551929,1709124640290,-500.0,0.00019412,2]
[315551931,1709124640299,-466.82706295,0.00019412,2]
[315551933,1709124640312,-33.17293705,0.00019412,2]
[315551935,1709124640321,-500.0,0.00019412,2]
[315551937,1709124640330,-500.0,0.00019412,2]
[315551939,1709124640339,-12.92833764,0.00019412,2]
[315552223,1709124643108,-487.07166236,0.00019412,2]
[315552225,1709124643117,-500.0,0.00019412,2]
[315552228,1709124643127,-500.0,0.00019412,2]
[315552230,1709124643136,-500.0,0.00019412,2]
[315552232,1709124643145,-500.0,0.00019412,2]
[315552234,1709124643155,-500.0,0.00019412,2]
[315552237,1709124643164,-861.38,0.00019413,2]
[315552240,1709124643173,-500.0,0.00019413,2]
[315552242,1709124643182,-781.38,0.00019413,2]
[315552244,1709124643191,-500.0,0.00019413,2]
[315552246,1709124643201,-500.0,0.00019413,2]
[315552248,1709124643210,-300.0,0.000196,8]
[315552250,1709124643218,-166.666666,0.00019627,2]
[315552252,1709124643227,-500.0,0.00019686,2]
[315552254,1709124643237,-500.0,0.00019686,2]
[315552256,1709124643246,-500.0,0.00019686,2]
[315552258,1709124643256,-500.0,0.00019686,2]
[315552260,1709124643265,-500.0,0.00019686,2]
[315552262,1709124643274,-760.56,0.00019686,2]
[315552264,1709124643283,-219.58,0.00019686,2]
[315552266,1709124643292,-563.58,0.00019686,2]
[315552268,1709124643302,-500.0,0.00019686,2]
[315552270,1709124643311,-503.34,0.00019686,2]
[315552272,1709124643320,-500.0,0.00019686,2]
[315552274,1709124643329,-500.0,0.00019686,2]
[315552276,1709124643338,-500.0,0.00019686,2]
[315552278,1709124643347,-1375.82,0.00019686,2]
[315552280,1709124643356,-500.0,0.00019686,2]
[315552282,1709124643365,-1843.15,0.00019686,2]
[315552284,1709124643374,-6387.56,0.00019686,2]
[315552286,1709124643383,-582.18,0.00019686,2]
[315552288,1709124643393,-1064.8,0.00019686,2]
[315552290,1709124643402,-598.33,0.00019686,2]
[315552292,1709124643410,-1035.24,0.00019686,2]
[315552294,1709124643420,-7468.34,0.00019686,2]
[315552296,1709124643429,-211.37,0.00019686,2]
[315552298,1709124643440,-500.0,0.00019686,2]
[315552300,1709124643449,-1165.13,0.00019686,2]
[315552302,1709124643459,-861.38,0.00019687,2]
[315552304,1709124643468,-500.0,0.00019687,2]
[315552306,1709124643478,-781.38,0.00019687,2]
[315552308,1709124643487,-500.0,0.00019687,2]
[315552310,1709124643495,-500.0,0.00019687,2]
[315552312,1709124643504,-557.0,0.00019687,2]
[315552314,1709124643513,-500.0,0.00019687,2]
[315552316,1709124643522,-341.0,0.00019687,2]
[315552318,1709124643531,-3241.28,0.00019687,2]
[315552320,1709124643541,-1144.31,0.00019687,2]
[315552322,1709124643550,-500.0,0.00019687,2]
[315552324,1709124643559,-500.0,0.00019687,2]
[315552326,1709124643569,-1206.63,0.00019687,2]
[315552327,1709124643579,-772.73,0.00019687,2]
[315552329,1709124643588,-500.0,0.00019687,2]
[315552331,1709124643597,-620.00233078,0.00019736,2]
[315552333,1709124643606,-16940.99,0.0001995,3]
[315552335,1709124643616,-500.0,0.0001996,2]
[315552337,1709124643626,-500.0,0.0001996,2]
[315552339,1709124643635,-500.0,0.0001996,2]
[315552341,1709124643644,-500.0,0.0001996,2]
[315552343,1709124643654,-500.0,0.0001996,2]
[315552345,1709124643664,-760.56,0.0001996,2]
[315552347,1709124643673,-563.58,0.0001996,2]
[315552349,1709124643682,-500.0,0.0001996,2]
[315552351,1709124643692,-503.34,0.0001996,2]
[315552353,1709124643702,-1375.82,0.0001996,2]
[315552355,1709124643710,-500.0,0.0001996,2]
[315552357,1709124643720,-1843.15,0.0001996,2]
[315552359,1709124643729,-6387.56,0.0001996,2]
[315552361,1709124643738,-582.18,0.0001996,2]
[315552363,1709124643747,-1064.8,0.0001996,2]